Cogmind - Beta 16.1 @@@ ROGUE MODE // 2026.04.21 @ 16:59:21 Player: SunShine214 Result: Destroyed by Y-45 Defender with Heavy Assault Rifle Performance ------------- Evolutions (2) 1000 Regions Visited (3) 600 Robots Destroyed (50) 250 Value Destroyed (838) 838 Prototype IDs (3) 60 Alien Tech Used (0) 0 Bonus (0) 0 TOTAL SCORE: 2748 Bonus ------- None Cogmind --------- Core Integrity 0/550 Matter 245/300 Energy 98/100 System Corruption 0% Temperature Cool (9) Movement Flying (115) Ox1 Location -8/Materials Parts ------- > --- POWER (1) -------- (None) > --- PROPULSION (3) --- VTOL Module > --- UTILITY (4) ------ Signal Interpreter Improved Signal Interpreter > --- WEAPON (3) ------- Enhanced Autogun Enhanced Autogun > --- INVENTORY (5) ---- Large Storage Unit Large Storage Unit Peak State ------------ > --- POWER ------------ (None) > --- PROPULSION ------- Airjet Flight Unit Flight Unit > --- UTILITY ---------- Signal Interpreter Improved Signal Interpreter > --- WEAPON ----------- Enhanced Autogun Enhanced Autogun Heavy Mace > --- INVENTORY -------- VTOL Module Large Storage Unit Large Storage Unit [Rating: 20] Favorites ----------- Power Ion Engine Engine Ion Engine Propulsion Light Treads Treads Light Treads Hover Unit Airjet Flight Unit Flight Unit Utility Signal Interpreter Device Seismic Detector Storage Small Storage Unit Processor Signal Interpreter Weapon Light Assault Rifle Energy Gun EM Pulse Gun Energy Cannon Beam Cannon Ballistic Gun Light Assault Rifle Special Weapon Mining Laser Impact Weapon Heavy Mace Build | -11 -10 -10 -8 ------- Run | Yrd Mat Sub Mat Slots Evolved 4 | . . . 4 Power . | . . . . Propulsion 1 | . . . 1 Utility 2 | . . . 2 Weapon 1 | . . . 1 Parts Attached 28 | 6 4 4 14 Power 2 | . 1 . 1 Engine 2 | . 1 . 1 Core . | . . . . Reactor . | . . . . Propulsion 10 | 2 . 2 6 Treads 3 | 2 . . 1 Leg . | . . . . Wheel . | . . . . Hover 1 | . . . 1 Flight 6 | . . 2 4 Utility 8 | 2 1 2 3 Device 3 | 1 . 1 1 Storage 3 | 1 1 . 1 Processor 2 | . . 1 1 Hackware . | . . . . Protection . | . . . . Artifact . | . . . . Weapon 8 | 2 2 . 4 Energy Gun 1 | 1 . . . Energy Cannon 1 | . 1 . . Ballistic Gun 4 | 1 . . 3 Ballistic Cannon . | . . . . Launcher . | . . . . Special Weapon 1 | . 1 . . Impact Weapon 1 | . . . 1 Slashing Weapon . | . . . . Piercing Weapon . | . . . . Special Melee Weapon . | . . . . Unidentified Prototypes 1 | . . . 1 Parts Lost 16 | . . 6 10 Power 1 | . . . 1 Propulsion 8 | . . 2 6 Utility 2 | . . 1 1 Weapon 5 | . . 3 2 Highest Loss Streak 6 | . . 4 6 To Critical Strikes 1 | . . 1 . Average Backups 4 | . 5 4 3 Power . | . . . . Propulsion 1 | . 1 2 1 Utility 1 | . 1 1 1 Weapon . | . 1 . . Tool/Special . | . . . . Unused Backups 4 | . 2 1 1 Power . | . . . . Propulsion 1 | . 1 . . Utility 2 | . . 1 1 Weapon 1 | . 1 . . Tool/Special . | . . . . Average Slot Usage (%) 72 | . 95 67 55 Engine 3 | . 9 . . Treads 14 | . 28 . 13 Flight 10 | . . 24 9 Device 10 | . 14 12 6 Storage 5 | . 14 . . Processor 6 | . . 2 16 Energy Gun 2 | . 8 . . Energy Cannon 5 | . 5 12 . Ballistic Gun 8 | . 14 9 . Special Weapon 1 | . . 2 . Impact Weapon 2 | . . . 6 Peak Build Rating 20 | 6 8 6 20 Average Rating 8 | 4 7 4 12 On Entrance 3 | . 6 8 1 Avg Prop Armor Cover (%) 16 | . . . 16 Naked Turns . | . . . . Heaviest Build 23 | 9 20 10 23 Greatest Support 40 | 40 40 40 40 Greatest Overweight (x) 1 | . . 1 . Average Overweight (x) . | . . . . Largest Inventory Capacity 15 | 8 10 5 15 Average Capacity 6 | 7 8 5 6 Most Carried 8 | 1 8 5 6 Average Carried 4 | . 5 4 3 Final Capacity 10 | 8 10 5 5 Final Carried 8 | 1 8 3 2 Class Distribution -------------------- 100% | Mutant Dominant Class ---------------- Mutant | -10/Materials Mutant | -10/Subcaves Mutant | -8/Materials Resources | -11 -10 -10 -8 ----------- Run | Yrd Mat Sub Mat Matter Collected 653 | 274 71 96 212 Remotely . | . . . . Salvage Created 1272 | 200 498 111 463 Parts 85 | 15 34 8 28 Haulers Intercepted 1 | . 1 . . Recyclers Shooed . | . . . . Parts Field Recycled . | . . . . Retrieved Matter . | . . . . Parts Self-Destructed 19 | . . 19 . Prevented . | . . . . Parts Restored . | . . . . Kills | -11 -10 -10 -8 ------- Run | Yrd Mat Sub Mat Combat Hostiles Destroyed 35 | . 12 3 20 Melee 4 | . . . 4 Guns 16 | . 6 1 9 Cannons 7 | . 5 2 . Classes Destroyed 9 | 3 6 . . Worker 2 | 1 . . 1 Builder 2 | . 1 . 1 Tunneler 4 | 4 . . . Hauler 1 | . 1 . . Recycler 2 | 1 1 . . Operator 2 | . 1 . 1 Watcher 2 | . 2 . . Swarmer 24 | . 8 1 15 Grunt 11 | . 4 2 5 Best Kill Streak 10 | 5 4 2 10 Combat Bots Only 9 | . 3 2 9 Max Kills in Single Turn 2 | 1 2 1 2 Gunslinging 1 | . 1 . 1 Exploded . | . . . . Melee 1 | . . . 1 Uniques/NPCs Destroyed . | . . . . Combat | -11 -10 -10 -8 -------- Run | Yrd Mat Sub Mat Hostile Shots Fired 300 | . 56 45 199 Missed 95 | . 20 19 56 Hits 205 | . 36 26 143 Projectile 205 | . 36 26 143 Critical Strikes 6 | . 1 2 3 Damage Taken 2233 | . 370 369 1494 Core 761 | . 89 118 554 Absorbed by Shields . | . . . . Core Remaining (%) 58 | 100 . 17 . Volleys Fired 91 | 14 45 18 14 Largest 2 | 2 2 2 2 Hottest 160 | 60 120 160 50 Shots Fired 172 | 28 89 27 28 Gun 134 | 28 71 7 28 Cannon 33 | . 16 17 . Launcher . | . . . . Special 5 | . 2 3 . Kinetic 94 | 14 45 7 28 Thermal 38 | . 18 20 . Explosive . | . . . . Electromagnetic 40 | 14 26 . . Robot Hit Streak 12 | 9 8 3 12 Robot Miss Streak 4 | 2 4 4 2 Penetration Max . | . . . . Secondary Targets 6 | . 2 . 4 Max Gunslinging Chain 1 | . 1 . 1 Shots Hit Robots 107 | 18 41 9 39 Core Hits 52 | 8 22 5 17 Critical Kills 1 | . 1 . . Critical Parts Destroyed 2 | . . . 2 Critical Strikes 4 | . 2 . 2 Meltdown 1 | . 1 . . Corrupt 1 | . 1 . . Smash 2 | . . . 2 Melee Attacks 25 | . . . 25 Impact 25 | . . . 25 Slashing . | . . . . Piercing . | . . . . Sneak Attacks 2 | . . . 2 Combat Hostiles . | . . . . Follow-up Attacks . | . . . . Damage Inflicted 2280 | 254 601 130 1295 Guns 1024 | 200 410 25 389 Cannons 263 | . 158 105 . Explosions 78 | 52 26 . . Melee 906 | . . . 906 Ramming 9 | 2 7 . . Kinetic 619 | 66 139 25 389 Thermal 341 | 52 184 105 . Explosive . | . . . . Electromagnetic 405 | 134 271 . . Impact 906 | . . . 906 Slashing . | . . . . Piercing . | . . . . Highest Corruption . | . . . . Average Corruption . | . . . . Corruption Purged . | . . . . Corruption Blocked . | . . . . Overload Shots . | . . . . Overflow Damage 253 | . . . 253 Projectiles . | . . . . Explosions . | . . . . Melee 253 | . . . 253 Knockbacks 4 | . . . 4 Impact 4 | . . . 4 Kinetic . | . . . . Secondary . | . . . . Self-Inflicted Damage 39 | . 39 . . Shots 1 | . 1 . . Rammed 3 | 1 2 . . Targets Rammed 5 | 2 3 . . Kicked . | . . . . Crushed 2 | 1 1 . . Highest Temperature 220 | 20 220 3 28 Average Temperature 40 | 8 50 3 15 Received Heat Transfer 477 | . 63 36 378 Siege Activations . | . . . . Martial Activations . | . . . . Shielding Activations . | . . . . Robots Disrupted . | . . . . Combat Hostiles . | . . . . Robots Corrupted 8 | . . . 8 Combat Hostiles 7 | . . . 7 Parts Fried 9 | . . . 9 Impact Corruptions 13 | . . . 13 Robots Melted 1 | . 1 . . Combat Hostiles 1 | . 1 . . Parts Melted 2 | . 2 . . Heat Transferred 705 | 100 383 222 . Parts Sabotaged . | . . . . Parts Stolen . | . . . . Parts Stripped . | . . . . Power Chain Reactions 2 | 1 1 . . Alert | -11 -10 -10 -8 ------- Run | Yrd Mat Sub Mat Maximum Alert Level 1 | . . . 1 Low Security (%) 98 | 100 100 . 97 Level 1 1 | . . . 2 Level 2 . | . . . . Level 3 . | . . . . Level 4 . | . . . . Level 5 . | . . . . High Security . | . . . . Max Security . | . . . . Peak Influence 261 | 10 135 . 261 Initial 3 | . 3 . . Average 39 | 3 48 . 35 Influence Increases 1040 | 30 384 115 511 Destroy 0b10 Robot/C 700 | . 240 60 400 Destroy 0b10 Robot/NC 75 | 30 30 . 15 Destroy Leader 106 | . 46 10 50 Successful Hack 35 | . 19 . 16 Disable Machine 30 | . 15 . 15 Destroy Structure 4 | . 4 . . Partial Spotted 15 | . . . 15 Lose Combat Pursuer 75 | . 30 45 . Influence Decreases 779 | 25 270 234 250 Entered New Map 60 | . 2 58 . Time Decay 569 | 25 268 126 150 Lost Part 150 | . . 50 100 Squads Dispatched 5 | . 3 . 2 Investigation 1 | . 1 . . Extermination . | . . . . Reinforcement 4 | . 2 . 2 Assault . | . . . . Garrison . | . . . . Intercept . | . . . . Searches Triggered . | . . . . Construction Impeded . | . . . . Haulers Reinforced . | . . . . Active Scanning Responses . | . . . . Cargo Convoy Interrupts . | . . . . Stealth | -11 -10 -10 -8 --------- Run | Yrd Mat Sub Mat Distress Signals 1 | . 1 . . Communications Jammed . | . . . . Distress Signals . | . . . . Times Spotted 53 | . 20 9 24 Peak Tracking Total 12 | . 4 6 12 Tactical Retreats 4 | . 2 2 . Traps | -11 -10 -10 -8 ------- Run | Yrd Mat Sub Mat Traps Triggered 2 | . 2 . . Indirectly . | . . . . Trap Hack Attempts . | . . . . Triggered . | . . . . Disarmed . | . . . . Reprogrammed . | . . . . Reused . | . . . . Traps Extracted . | . . . . Installed . | . . . . Triggered . | . . . . Machines | -11 -10 -10 -8 ---------- Run | Yrd Mat Sub Mat Machines Disabled 4 | . 3 . 1 Max in Single Turn 1 | . 1 . 1 Machines Repaired . | . . . . Machines Dismantled . | . . . . Machines Sabotaged . | . . . . Overloaded Fab Kills . | . . . . Hacking | -11 -10 -10 -8 --------- Run | Yrd Mat Sub Mat Machines Accessed 4 | . 3 . 1 Terminals 4 | . 3 . 1 Fabricators . | . . . . Repair Stations . | . . . . Recycling Units . | . . . . Scanalyzers . | . . . . Garrison Access . | . . . . Total Hacks 6 | . 5 . 1 Successful 4 | . 3 . 1 Failed 2 | . 2 . . Catastrophic . | . . . . Database Lockouts . | . . . . Manual . | . . . . Terminals 6 | . 5 . 1 Fabricators . | . . . . Repair Stations . | . . . . Recycling Units . | . . . . Scanalyzers . | . . . . Garrison Access . | . . . . Terminal Hacks 4 | . 3 . 1 Prototype ID Bank 1 | . 1 . . Branch Access Points 1 | . . . 1 Hauler Manifests 2 | . 2 . . Fabricator Hacks . | . . . . Repair Station Hacks . | . . . . Recycling Unit Hacks . | . . . . Scanalyzer . | . . . . Garrison Access Hacks . | . . . . Unauthorized Hacks . | . . . . Terminals . | . . . . Fabricators . | . . . . Repair Stations . | . . . . Recycling Units . | . . . . Scanalyzers . | . . . . Garrison Access . | . . . . Data Cores Recovered . | . . . . Used . | . . . . Hacking Detections . | . . . . Full Trace Events . | . . . . Feedback Events . | . . . . Feedback Blocked . | . . . . Robot Schematics Acquired . | . . . . Robots Built . | . . . . Authchips . | . . . . Time . | . . . . Total Robot Build Rating . | . . . . Part Schematics Acquired . | . . . . Parts Built . | . . . . Authchips . | . . . . Time . | . . . . Total Part Build Rating . | . . . . Part Studies Acquired . | . . . . Parts Repaired . | . . . . Time . | . . . . Parts Recycled . | . . . . Recycled Matter . | . . . . Retrieved Matter . | . . . . Retrieved Components . | . . . . Parts Scanalyzed . | . . . . Part Schematics Acquired . | . . . . Parts Damaged . | . . . . Bothacking | -11 -10 -10 -8 ------------ Run | Yrd Mat Sub Mat Used RIF Installer . | . . . . Robots Hacked . | . . . . Non-combat . | . . . . Combat . | . . . . Robot Hacks Applied . | . . . . Relay Couplers Released . | . . . . Fabnet Peak Effective % . | . . . . Robots Rewired . | . . . . Allies Hacked . | . . . . Hacks Repelled . | . . . . Allies | -11 -10 -10 -8 -------- Run | Yrd Mat Sub Mat Total Allies . | . . . . Largest Group . | . . . . Highest-Rated Group . | . . . . Highest-Rated Ally . | . . . . Total Orders . | . . . . Ally Attacks . | . . . . Total Damage . | . . . . Kills . | . . . . Allies Corrupted . | . . . . Allies Melted . | . . . . Intel | -11 -10 -10 -8 ------- Run | Yrd Mat Sub Mat Active Infowar (turns) 1816 | 11 738 541 526 Sensors 1061 | . . 535 526 Seismic 755 | 11 738 6 . Robot Analysis Total . | . . . . Derelict Logs Recovered 1 | . . 1 . Drone Launches . | . . . . Drone Recoveries . | . . . . Exploration | -11 -10 -10 -8 ------------- Run | Yrd Mat Sub Mat Turns Passed 2206 | 107 738 612 749 Spaces Moved 1112 | 38 367 432 275 Core 61 | 5 . 49 7 Treads 473 | 33 367 1 72 Legs . | . . . . Wheels . | . . . . Hover 8 | . . . 8 Flight 570 | . . 382 188 Fastest Speed 35 | 50 160 37 35 Average Speed 93 | 145 160 43 75 Slowest Speed 160 | 160 160 160 160 Overloaded Moves . | . . . . Propulsion Burnouts . | . . . . Robots Hopped 4 | . . 1 3 Potential Cave-ins . | . . . . Cave-ins Triggered . | . . . . Exploration Rate (%) 29 | 4 68 19 26 Regions Visited 3 Branch Regions 1 Pre-discovered Areas 1 | . . 1 . Known Exits Taken 1 | . . 1 . Unknown Exits Taken 2 | 1 1 . . Scrap Searched . | . . . . Spaces Dug . | . . . . Terrain Destroyed 9 | 6 3 . . Melee . | . . . . Projectile . | . . . . AOE 9 | 6 3 . . Terrain Rammed . | . . . . Walls Destroyed . | . . . . Machines Disabled . | . . . . Actions | -11 -10 -10 -8 --------- Run | Yrd Mat Sub Mat Total 2067 | 60 434 823 750 Wait 770 | . . 362 408 Move 1101 | 37 366 429 269 Hop 4 | . . 1 3 Pick Up 21 | 1 11 1 8 Fast Attach 13 | 6 1 . 6 Attach 13 | . . 3 10 Detach 3 | . . 1 2 Swap 12 | . 3 5 4 Drop 9 | . 5 3 1 Fire 91 | 14 45 18 14 Melee 25 | . . . 25 Ram . | . . . . Kick . | . . . . Crush 5 | 2 3 . . Escape Stasis . | . . . . Rewire . | . . . . Trap . | . . . . Miscellaneous . | . . . . Route ------- -11/Scrapyard -10/Materials (discovered 6 exits: [*Mat x3] / [*Min x2] / [*Sub]) -10/Subcaves -8/Materials History --------- Turn | Location | Event 49 | -11/Scrapyard | Discovered new exit (range 15) 108 | -11/Scrapyard | Entered Materials 218 | -10/Materials | Discovered new exit (range 12) 308 | -10/Materials | Build established: Mutant 362 | -10/Materials | Discovered new exit (range 16) 599 | -10/Materials | Discovered new exit (range 5) 652 | -10/Materials | Discovered new exit (range 9) 740 | -10/Materials | Discovered new exit (range 12) 835 | -10/Materials | Discovered new exit (range 8) 846 | -10/Materials | Entered Subcaves 847 | -10/Subcaves | Approached by a straggling Scientist 873 | -10/Subcaves | Learned location of Zion (-6) 1317 | -10/Subcaves | Shifting Twisted Machinery released Riot Gun 1323 | -10/Subcaves | Discovered new exit (range 6) 1329 | -10/Subcaves | Identified exit to Materials 1338 | -10/Subcaves | Ambushed by Subdwellers from Twisted Machinery 1375 | -10/Subcaves | Core integrity fell below 50% 1427 | -10/Subcaves | Lost 4 parts (1u3w) 1436 | -10/Subcaves | Core integrity fell below 20% 1458 | -10/Subcaves | Entered Materials 1458 | -8/Materials | Evolved 4 slots: Propulsion x1, Utility x2, Weapon x1 2124 | -8/Materials | Lost 4 parts (3n1u) 2128 | -8/Materials | Destroyed 7 combat bots 2173 | -8/Materials | Core integrity fell below 50% 2193 | -8/Materials | Core integrity fell below 20% 2207 | -8/Materials | Destroyed by Y-45 Defender with Heavy Assault Rifle Last Messages --------------- Defender. 02189_ R-06 Scavenger collects Lgt. Ion Engine. 02189_ R-06 Scavenger destroyed. 02190_ Acquired 66 matter. 02190_ K-01 Serf collects debris. 02190_ S-10 Pest destroyed. 02191_ Acquired 8 matter. 02192_ Enh. Autogun destroyed. 02193_ Acquired 3 matter. 02193_ R-06 Scavenger collects Flight Unit. 02195_ Acquired 5 matter. 02195_ K-01 Serf destroyed. 02197_ Acquired Enh. Autogun. 02198_ S-10 Pest destroyed. 02200_ Switching to secondary target: Y-45 Defender. 02202_ S-10 Pest destroyed. 02202_ Switching to secondary target: Y-45 Defender. 02202_ U-05 Engineer destroyed. Map ----- +----------------------------------------------------+ | ?????????????????????????????????????????????????? | | ?????????????????????????????????????????????????? | | ?????????????????????????????????????????????????? | | ?????????????????????????????????????????????????? | | ?????????????????????????????????????????????????? | | ???????????????????????????????????##########????? | | ???????????????????????????????????# "" #????? | | ???????????????????????????????????# % ""S ###### | | ??????????????????????????#####?#### "" # | | ??????????????????????????# ? # # | | ??????????????????????????# """ # + | | ??????????????????????????# """"" # """ # | | ??????????????????????????#! """"" # """ ### | | ??????????????????????????# """"" # """ #?# | | ????????????######????????# """ # #?# | | ????????????# ????????# #? #######?# | | ????????????# " ???????# ############ | | ????????????# "" ?####### / | | ????????????# "" # ###+########### ######## | | ????????????# """ # #??#+#?#=% # | | ????????????# "" [ + =*=%[= #??????#! + | | ????????????# """ # %[%%%*== #??????# *[ # | | ????????????# """ # !=!%%== #??????# % # | | ????????????# """ ?## ==**= #??????# % + | | ????????????? " ??# =!*%= #??????#% # | | ????????????# ???# =@[ #??????###### | | ????????????######???# %| #???????????# | | ?????????????????????# = r ????????# | | ?????????????????????# ####### ????????# | | ?????????????????????# Y#?????? ?????????# | | ????????????????????? ?????? ?????????# | | ????????????????????# ??????########?????????# | | ????????????????????# #??????????????????????# | | ???????????????????? #??????????????????????? | | ???????????????????## #??????????????????????? | | ????????????????????## ##??????????????????????? | | ?????????????????????# #???????????????????????? | | ?????????????????????# ????????????????????????? | | ?????????????????????+ ????????????????????????? | | ?????????????????????# ????????????????????????? | | ?????????????????????? ????????????????????????? | | ?????????????????????????????????????????????????? | | ?????????????????????????????????????????????????? | | ?????????????????????????????????????????????????? | | ?????????????????????????????????????????????????? | | ?????????????????????????????????????????????????? | | ?????????????????????????????????????????????????? | | ?????????????????????????????????????????????????? | | ?????????????????????????????????????????????????? | | ?????????????????????????????????????????????????? | +----------------------------------------------------+ Best States ------------- Heat Dissipation 31 Energy Generation 10 Energy Capacity 250 Matter Stores 300 Matter Capacity 300 Sight Range 16 Robot Scan Range 15 Terrain Scan Density 10 Evasion (%) 62 Recoil Reduction 2 Item Schematics ----------------- None Robot Schematics ------------------ None Fabricated ------------ Nothing Repaired ---------- Nothing Studied --------- None Alien Tech Used ----------------- None Achievements -------------- None Challenges ------------ None Game ------ Seed InterceptAblativeDetector Manual? 0 Play Time 00:13:45 Cumulative 149.3 hours Start 2026.04.21 @ 16:45:02 End 2026.04.21 @ 16:59:21 Sessions 1 Manual Loads 0 Difficulty Rogue Special Mode None Game No. 231 Rogue 231 Adventurer 0 Explorer 0 Win Type - Total 1 Types 1/0/0/0/0/0/0/0/0/0 Lore% 53 Gallery% 55 Achievement% 42 Wizard Run 0 Options --------- Layout 1 ASCII 0 Keyboard 1 Movement Arrows Keybinds 0 Fullscreen 1 Font 24/Smallcaps Map View 50x35 Zoom Use 0% Tactical HUD 1 Map Filters NONE Filters NONE Steam 1 RUN: 2679fb2d-7e73-463a-b7e0-cb267e940a26